Cogmind - Beta 13 @@@ ROGUE MODE // 2024.03.31 @ 11:21:22 Player: gabr Result: Destroyed by as-08868 with Assembled Rifle Performance ------------- Evolutions (0) 0 Regions Visited (3) 600 Robots Destroyed (6) 30 Value Destroyed (169) 169 Prototype IDs (23) 460 Alien Tech Used (0) 0 Bonus (300) 300 TOTAL SCORE: 1559 Bonus ------- Aligned with FarCom 300 Cogmind --------- Core Integrity 0/250 Matter 222/300 Energy 75/125 System Corruption 2% Temperature Cool (0) Movement Core (2700) Ox53 Location -10/Exiles Parts ------- > --- POWER (1) -------- Light Ion Engine > --- PROPULSION (2) --- (None) > --- UTILITY (2) ------ Cargo Storage Unit > --- WEAPON (2) ------- YOLO Cannon > --- INVENTORY (30) --- Aluminum Leg Aluminum Leg Aluminum Leg Aluminum Leg Wheel Wheel Heat Sink Medium Laser Medium Laser Medium Laser Light Assault Rifle Grenade Launcher Mining Laser Peak State ------------ > --- POWER ------------ Ion Engine > --- PROPULSION ------- Aluminum Leg Aluminum Leg > --- UTILITY ---------- Cargo Storage Unit > --- WEAPON ----------- YOLO Cannon > --- INVENTORY -------- Light Ion Engine Aluminum Leg Aluminum Leg Aluminum Leg Aluminum Leg Wheel Wheel Heat Sink Medium Laser Medium Laser Medium Laser Light Assault Rifle Grenade Launcher Mining Laser [Rating: 26] Favorites ----------- Power Ion Engine Engine Ion Engine Propulsion Aluminum Leg Leg Aluminum Leg Utility Cargo Storage Unit Storage Cargo Storage Unit Weapon Medium Laser Energy Gun Medium Laser Energy Cannon YOLO Cannon Ballistic Gun Light Assault Rifle Slashing Weapon Longsword +1 Build | -11 -10 -10 -10 ------- Run | Yrd Mat Min Exi Slots Evolved . | . . . . Power . | . . . . Propulsion . | . . . . Utility . | . . . . Weapon . | . . . . Parts Attached 16 | 6 5 2 3 Power 2 | 1 . . 1 Engine 2 | 1 . . 1 Core . | . . . . Reactor . | . . . . Propulsion 6 | 2 2 2 . Treads . | . . . . Leg 6 | 2 2 2 . Wheel . | . . . . Hover . | . . . . Flight . | . . . . Utility 3 | 1 2 . . Device . | . . . . Storage 3 | 1 2 . . Processor . | . . . . Hackware . | . . . . Protection . | . . . . Artifact . | . . . . Weapon 5 | 2 1 . 2 Energy Gun 2 | 1 1 . . Energy Cannon 1 | . . . 1 Ballistic Gun 1 | 1 . . . Ballistic Cannon . | . . . . Launcher . | . . . . Special Weapon . | . . . . Impact Weapon . | . . . . Slashing Weapon 1 | . . . 1 Piercing Weapon . | . . . . Special Melee Weapon . | . . . . Unidentified Prototypes . | . . . . Parts Lost 4 | . . 1 3 Power 1 | . . . 1 Propulsion 2 | . . . 2 Utility . | . . . . Weapon 1 | . . 1 . Highest Loss Streak 3 | . . 1 3 To Critical Strikes 1 | . . . 1 Average Slot Usage (%) 68 | . 85 72 64 Engine 13 | . 14 14 13 Leg 27 | . 28 28 27 Storage 14 | . 14 14 14 Energy Gun 8 | . 23 15 4 Energy Cannon 1 | . . . 2 Naked Turns . | . . . . Heaviest Build 163 | 13 149 147 163 Greatest Support 20 | 20 20 20 20 Greatest Overweight (x) 8 | . 7 7 8 Average Overweight (x) 5 | . 2 7 7 Largest Inventory Capacity 30 | 8 30 30 30 Average Capacity 28 | 6 23 30 30 Most Carried 15 | 4 11 13 15 Average Carried 12 | 2 8 12 13 Final Capacity 30 | 8 30 30 30 Final Carried 13 | 4 11 13 13 Class Distribution -------------------- 93% | Hauler-Mutant 6% | Mutant Dominant Class ---------------- Hauler-Mutant | -10/Materials Hauler-Mutant | -10/Mines Hauler-Mutant | -10/Exiles Resources | -11 -10 -10 -10 ----------- Run | Yrd Mat Min Exi Matter Collected 343 | 214 109 20 . Remotely . | . . . . Salvage Created 263 | . 141 99 23 Parts 10 | . 6 2 2 Haulers Intercepted . | . . . . Recyclers Shooed 1 | . 1 . . Parts Field Recycled . | . . . . Retrieved Matter . | . . . . Parts Self-Destructed . | . . . . Prevented . | . . . . Kills | -11 -10 -10 -10 ------- Run | Yrd Mat Min Exi Combat Hostiles Destroyed 8 | . 2 2 4 Guns 4 | . 2 2 . Cannons 1 | . . . 1 AOE 3 | . . . 3 Classes Destroyed 3 | . 2 . 1 Recycler 1 | . 1 . . Grunt 4 | . 2 2 . Assembled 4 | . . . 4 Best Kill Streak 5 | . 3 2 5 Combat Bots Only 4 | . 2 2 4 Max Kills in Single Turn 4 | . 1 1 4 Gunslinging . | . . . . Exploded 3 | . . . 3 Melee . | . . . . Uniques/NPCs Destroyed 1 | . . . 1 EX-HEX (-10/Exiles) Combat | -11 -10 -10 -10 -------- Run | Yrd Mat Min Exi Hostile Shots Fired 106 | . 8 19 79 Missed 23 | . 3 4 16 Damage Taken 1242 | . 76 171 995 Core 254 | . . 32 222 Absorbed by Shields . | . . . . Core Remaining (%) 100 | 100 . . . Volleys Fired 26 | . 9 12 5 Largest 2 | . 2 2 1 Hottest 100 | . 100 100 100 Shots Fired 42 | . 18 18 6 Gun 36 | . 18 18 . Cannon 6 | . . . 6 Launcher . | . . . . Special . | . . . . Kinetic . | . . . . Thermal 42 | . 18 18 6 Explosive . | . . . . Electromagnetic . | . . . . Robot Hit Streak 9 | . 8 5 9 Robot Miss Streak 2 | . 1 2 1 Penetration Max . | . . . . Secondary Targets . | . . . . Shots Hit Robots 31 | . 14 12 5 Core Hits 17 | . 7 5 5 Critical Kills . | . . . . Critical Parts Destroyed . | . . . . Critical Strikes 3 | . 2 1 . Burn 3 | . 2 1 . Melee Attacks . | . . . . Impact . | . . . . Slashing . | . . . . Piercing . | . . . . Sneak Attacks . | . . . . Combat Hostiles . | . . . . Follow-up Attacks . | . . . . Damage Inflicted 1020 | . 175 150 695 Guns 325 | . 175 150 . Cannons 421 | . . . 421 Explosions 274 | . . . 274 Melee . | . . . . Ramming . | . . . . Kinetic . | . . . . Thermal 1020 | . 175 150 695 Explosive . | . . . . Electromagnetic . | . . . . Impact . | . . . . Slashing . | . . . . Piercing . | . . . . Highest Corruption 2 | . 2 2 2 Average Corruption 2 | . 2 2 2 Corruption Purged . | . . . . Corruption Blocked . | . . . . Effects 38 | . 3 2 33 Message Errors 9 | . 1 . 8 Matter Fused 10 | . 2 1 7 Heat Flow Errors 5 | . . . 5 Energy Discharges 2 | . . . 2 Parts Fused 1 | . . . 1 Data Loss (minor) 4 | . . . 4 Data Loss (major) 5 | . . 1 4 Misfires 1 | . . . 1 Alerts 1 | . . . 1 Overload Shots . | . . . . Overflow Damage 240 | . . . 240 Projectiles 222 | . . . 222 Explosions 18 | . . . 18 Melee . | . . . . Knockbacks . | . . . . Impact . | . . . . Kinetic . | . . . . Secondary . | . . . . Self-Inflicted Damage 56 | . . . 56 Shots 1 | . . . 1 Rammed . | . . . . Targets Rammed . | . . . . Kicked . | . . . . Crushed . | . . . . Highest Temperature 387 | . 276 387 212 Average Temperature 144 | . 118 218 112 Received Heat Transfer 155 | . 42 93 20 Effects 4 | . . 4 . Interference 3 | . . 3 . Damage (minor) 1 | . . 1 . Siege Activations . | . . . . Robots Corrupted . | . . . . Combat Hostiles . | . . . . Parts Fried . | . . . . Impact Corruptions . | . . . . Robots Melted . | . . . . Combat Hostiles . | . . . . Parts Melted 3 | . 1 1 1 Heat Transferred 1824 | . 666 518 640 Parts Sabotaged . | . . . . Parts Stolen . | . . . . Parts Stripped . | . . . . Power Chain Reactions . | . . . . Alert | -11 -10 -10 -10 ------- Run | Yrd Mat Min Exi Peak Influence 55 | . 55 40 . Initial . | . . . . Average 26 | . 22 38 . Maximum Alert Level . | . . . . Low Security (%) 100 | 100 100 100 . Level 1 . | . . . . Level 2 . | . . . . Level 3 . | . . . . Level 4 . | . . . . Level 5 . | . . . . High Security . | . . . . Max Security . | . . . . Squads Dispatched . | . . . . Investigation . | . . . . Extermination . | . . . . Reinforcement . | . . . . Assault . | . . . . Garrison . | . . . . Intercept . | . . . . Searches Triggered . | . . . . Construction Impeded . | . . . . Haulers Reinforced . | . . . . Active Scanning Responses . | . . . . Cargo Convoy Interrupts . | . . . . Stealth | -11 -10 -10 -10 --------- Run | Yrd Mat Min Exi Distress Signals . | . . . . Communications Jammed . | . . . . Distress Signals . | . . . . Times Spotted 13 | . 2 2 9 Peak Tracking Total 10 | . 2 2 10 Tactical Retreats 1 | . . . 1 Traps | -11 -10 -10 -10 ------- Run | Yrd Mat Min Exi Traps Triggered 1 | . 1 . . Indirectly . | . . . . Trap Hack Attempts . | . . . . Triggered . | . . . . Disarmed . | . . . . Reprogrammed . | . . . . Reused . | . . . . Traps Extracted . | . . . . Installed . | . . . . Triggered . | . . . . Machines | -11 -10 -10 -10 ---------- Run | Yrd Mat Min Exi Machines Disabled 2 | . . . 2 Max in Single Turn 1 | . . . 1 Machines Repaired . | . . . . Machines Dismantled . | . . . . Machines Sabotaged . | . . . . Overloaded Fab Kills . | . . . . Hacking | -11 -10 -10 -10 --------- Run | Yrd Mat Min Exi Machines Accessed 1 | . . . 1 Terminals . | . . . . Fabricators . | . . . . Repair Stations . | . . . . Recycling Units . | . . . . Scanalyzers . | . . . . Garrison Access . | . . . . Total Hacks 1 | . . . 1 Successful 1 | . . . 1 Failed . | . . . . Catastrophic . | . . . . Database Lockouts . | . . . . Manual 2 | . . . 2 Terminals . | . . . . Fabricators . | . . . . Repair Stations . | . . . . Recycling Units . | . . . . Scanalyzers . | . . . . Garrison Access . | . . . . Terminal Hacks 1 | . . . 1 Derelict Proto ID Bank 1 | . . . 1 Fabricator Hacks . | . . . . Repair Station Hacks . | . . . . Recycling Unit Hacks . | . . . . Scanalyzer . | . . . . Garrison Access Hacks . | . . . . Unauthorized Hacks . | . . . . Terminals . | . . . . Fabricators . | . . . . Repair Stations . | . . . . Recycling Units . | . . . . Scanalyzers . | . . . . Garrison Access . | . . . . Data Cores Recovered . | . . . . Used . | . . . . Hacking Detections . | . . . . Full Trace Events . | . . . . Feedback Events . | . . . . Feedback Blocked . | . . . . Robot Schematics Acquired . | . . . . Robots Built . | . . . . Authchips . | . . . . Time . | . . . . Total Robot Build Rating . | . . . . Part Schematics Acquired . | . . . . Parts Built . | . . . . Authchips . | . . . . Time . | . . . . Total Part Build Rating . | . . . . Parts Repaired . | . . . . Time . | . . . . Parts Recycled . | . . . . Recycled Matter . | . . . . Retrieved Matter . | . . . . Retrieved Components . | . . . . Parts Scanalyzed . | . . . . Part Schematics Acquired . | . . . . Parts Damaged . | . . . . Bothacking | -11 -10 -10 -10 ------------ Run | Yrd Mat Min Exi Used RIF Installer . | . . . . Robots Hacked . | . . . . Non-combat . | . . . . Combat . | . . . . Robot Hacks Applied . | . . . . Relay Couplers Released . | . . . . Fabnet Peak Effective % . | . . . . Robots Rewired . | . . . . Allies Hacked . | . . . . Hacks Repelled . | . . . . Allies | -11 -10 -10 -10 -------- Run | Yrd Mat Min Exi Total Allies . | . . . . Largest Group . | . . . . Highest-Rated Group . | . . . . Highest-Rated Ally . | . . . . Total Orders . | . . . . Ally Attacks . | . . . . Total Damage . | . . . . Kills . | . . . . Allies Corrupted . | . . . . Allies Melted . | . . . . Intel | -11 -10 -10 -10 ------- Run | Yrd Mat Min Exi Robot Analysis Total . | . . . . Derelict Logs Recovered . | . . . . Drone Launches . | . . . . Drone Recoveries . | . . . . Exploration | -11 -10 -10 -10 ------------- Run | Yrd Mat Min Exi Turns Passed 3154 | 75 462 338 2279 Spaces Moved 629 | 55 162 51 361 Core 5 | 5 . . . Treads . | . . . . Legs 624 | 50 162 51 361 Wheels . | . . . . Hover . | . . . . Flight . | . . . . Fastest Speed 50 | 50 120 610 610 Average Speed 483 | 113 261 610 620 Slowest Speed 680 | 120 610 610 680 Overloaded Moves . | . . . . Propulsion Burnouts . | . . . . Robots Hopped . | . . . . Cave-ins Triggered . | . . . . Exploration Rate (%) 26 | 4 19 14 70 Regions Visited 3 Branch Regions 2 Pre-discovered Areas . | . . . . Known Exits Taken . | . . . . Unknown Exits Taken 3 | 1 1 1 . Scrap Searched . | . . . . Spaces Dug . | . . . . Terrain Destroyed 42 | . . . 42 Melee . | . . . . Projectile 1 | . . . 1 AOE 41 | . . . 41 Terrain Rammed . | . . . . Walls Destroyed . | . . . . Machines Disabled . | . . . . Actions | -11 -10 -10 -10 --------- Run | Yrd Mat Min Exi Total 698 | 64 186 64 384 Wait 12 | . . . 12 Move 626 | 54 161 50 361 Hop . | . . . . Pick Up 12 | 4 8 . . Fast Attach 11 | 6 3 . 2 Attach 1 | . . . 1 Detach 4 | . 2 . 2 Swap 4 | . 2 2 . Drop 2 | . 1 . 1 Fire 26 | . 9 12 5 Melee . | . . . . Ram . | . . . . Kick . | . . . . Crush . | . . . . Escape Stasis . | . . . . Rewire . | . . . . Trap . | . . . . Miscellaneous . | . . . . Route ------- -11/Scrapyard -10/Materials -10/Mines -10/Exiles (discovered 1 exit: [*Min]) History --------- Turn | Location | Event 5 | -11/Scrapyard | Discovered new exit (range 15) 76 | -11/Scrapyard | Entered Materials 99 | -10/Materials | Discovered new exit (range 16) 507 | -10/Materials | Build established: Hauler-Mutant 538 | -10/Materials | Entered Mines 846 | -10/Mines | Deemed a non-threat by the Exiles lab entrance 852 | -10/Mines | Discovered new exit (range 5) 876 | -10/Mines | Entered Exiles 1029 | -10/Exiles | Met 8R-AWN 1127 | -10/Exiles | Met EX-HEX 1438 | -10/Exiles | Met EX-DEC 1920 | -10/Exiles | Discovered new exit (range 14) 2304 | -10/Exiles | Met EX-BIN 2378 | -10/Exiles | Aligned with FarCom system 2384 | -10/Exiles | Given EX-Vault access code 2530 | -10/Exiles | Opened EX-Vault 2689 | -10/Exiles | Found Longsword +1 2740 | -10/Exiles | Found YOLO Cannon 2891 | -10/Exiles | Warned to stay clear of 0b10 Research branches 3121 | -10/Exiles | Attacked by the Exiles 3122 | -10/Exiles | Destroyed EX-HEX 3136 | -10/Exiles | Core integrity fell below 50% 3144 | -10/Exiles | Core integrity fell below 20% 3155 | -10/Exiles | Destroyed by as-08868 with Assembled Rifle Last Messages --------------- 03126_ as-18948 destroyed. 03126_ as-53008 destroyed. 03128_ Penetrated by HV Slug. 03130_ Machine disabled. 03134_ Penetrated by HV Slug. 03136_ Critical hit (Destroy). 03136_ Aluminum Leg destroyed. 03137_ Ion Engine destroyed. 03138_ Penetrated by HV Slug. 03144_ HV Slug penetrates Machine. 03144_ Machine disabled. 03146_ Penetrated by HV Slug. 03146_ HV Slug penetrates Machine. 03146_ Penetrated by HV Slug. 03146_ HV Slug penetrates Machine. 03147_ Aluminum Leg destroyed. 03148_ Penetrated by HV Slug. 03148_ HV Slug penetrates Machine. 03151_ Penetrated by HV Slug. [Achievement: Achiever] Map ----- +----------------------------------------------------+ | ??#" """#?????????????????????????????? | | ??#" """#?????????????????????????????? | | ??#" """#?????????????????????????????? | | ??## """"?????????????????????????????? | | ???# """#?????????????????????????????? | | ???#" "X" """"?????????????????????????????? | | ???#" """ #?????????????????????????????? | | ???#" """""""""#?????????????????????????????? | | ??##" ###########?????????????????????????????? | | ?##"" #???????????????????????????????????????? | | ##"" #???????????????????????????????????????? | | """" ##??????????????????????????????????????? | | " "" ##???#########?????????????????????????? | | " #####"""""""""##??????????????????????? | | " """ """"##?????????????????????? | | "" " #?????????????????????? | | " """#?????????????????????? | | "a"#####???????#####?????? | | " ##?????##" #?????? | | #?????#" #?????? | | """""" #????##" ##????? | | ######""" ###### ###??? | | #????#####""" ; #### | | ?????????##""" ; #"" | | ??????????#"""" | | ?????????## @ g ;# | | ####??####"""" ;## | | ####""" ; #"""""### | | """" % ;;?#######?? | | % ###;;; ?????????? | | % ##???????????????? | | " a ##????????????????? | | " "" """ a ""#?????????????????? | | ""## ##""" " " ""#" a"##?????????????????? | | "#### ######""" """##"""""""##??????????????????? | | ##??# #????###""""###########???????????????????? | | #??## ####???######?????????????????????????????? | | #??#! "!#??????????????????????????????????????? | | ???#" !#??????????????????????????????????????? | | ???#" "#??????????????????????????????????????? | | ???#!!""!"#??????????????????????????????????????? | | ???########??????????????????????????????????????? | | ?????????????????????????????????????????????????? | | ?????????????????????????????????????????????????? | | ?????????????????????????????????????????????????? | | ?????????????????????????????????????????????????? | | ?????????????????????????????????????????????????? | | ?????????????????????????????????????????????????? | | ?????????????????????????????????????????????????? | | ?????????????????????????????????????????????????? | +----------------------------------------------------+ Best States ------------- Heat Dissipation 25 Energy Generation 10 Energy Capacity 250 Matter Stores 300 Matter Capacity 300 Sight Range 16 Terrain Scan Density 10 Evasion (%) 55 Item Schematics ----------------- None Robot Schematics ------------------ None Fabricated ------------ Nothing Alien Tech Used ----------------- None Achievements -------------- Achiever Tank Challenges ------------ None Game ------ Seed ProcessingLauncherComputer Manual? 0 Play Time 00:07:38 Cumulative 32.8 hours Start 2024.03.31 @ 11:14:05 End 2024.03.31 @ 11:21:22 Sessions 1 Manual Loads 0 Difficulty Rogue Special Mode None Game No. 70 Rogue 70 Adventurer 0 Explorer 0 Win Type - Total 0 Types 0/0/0/0/0/0/0/0/0 Lore% 19 Gallery% 29 Achievement% 25 Wizard Run 0 Options --------- Layout 0 ASCII 0 Keyboard 1 Movement Numpad Keybinds 0 Fullscreen 1 Font 18/X11 Map View 76x50 Zoom Use 0% Tactical HUD 1 Map Filters NONE Filters NONE Steam 1 RUN: dd470720-17b2-4d2f-b627-6caf10bb59f6